Cogmind - Beta 13 @@@ ROGUE MODE // 2024.04.02 @ 20:04:48 Player: sewer jenny Result: Destroyed by Y-45 Defender with Heavy Assault Rifle Performance ------------- Evolutions (1) 500 Regions Visited (2) 400 Robots Destroyed (3) 15 Value Destroyed (106) 106 Prototype IDs (0) 0 Alien Tech Used (0) 0 Bonus (0) 0 TOTAL SCORE: 1021 Bonus ------- None Cogmind --------- Core Integrity 0/400 Matter 234/300 Energy 100/100 System Corruption 0% Temperature Cool (9) Movement Core (50) Location -9/Materials Parts ------- > --- POWER (1) -------- (None) > --- PROPULSION (4) --- (None) > --- UTILITY (2) ------ Visual Processing Unit > --- WEAPON (2) ------- Mining Claw > --- INVENTORY (5) ---- Ion Engine Light Ion Engine Peak State ------------ > --- POWER ------------ Ion Engine > --- PROPULSION ------- Wheel > --- UTILITY ---------- Visual Processing Unit Hardened Light Armor Plating > --- WEAPON ----------- Assault Rifle Mining Claw > --- INVENTORY -------- Ion Engine Light Ion Engine [Rating: 8] Favorites ----------- Power Ion Engine Engine Ion Engine Propulsion Aluminum Leg Leg Aluminum Leg Wheel Wheel Utility Visual Processing Unit Processor Visual Processing Unit Protection Hardened Light Armor Plating Weapon Mining Claw Energy Gun Medium Laser Ballistic Gun Assault Rifle Slashing Weapon Mining Claw Build | -11 -10 -9 ------- Run | Yrd Mat Mat Slots Evolved 2 | . . 2 Power . | . . . Propulsion 2 | . . 2 Utility . | . . . Weapon . | . . . Parts Attached 11 | 4 3 4 Power 2 | 1 1 . Engine 2 | 1 1 . Core . | . . . Reactor . | . . . Propulsion 4 | 2 1 1 Treads . | . . . Leg 2 | 2 . . Wheel 2 | . 1 1 Hover . | . . . Flight . | . . . Utility 2 | . . 2 Device . | . . . Storage . | . . . Processor 1 | . . 1 Hackware . | . . . Protection 1 | . . 1 Artifact . | . . . Weapon 3 | 1 1 1 Energy Gun 1 | 1 . . Energy Cannon . | . . . Ballistic Gun 1 | . . 1 Ballistic Cannon . | . . . Launcher . | . . . Special Weapon . | . . . Impact Weapon . | . . . Slashing Weapon 1 | . 1 . Piercing Weapon . | . . . Special Melee Weapon . | . . . Unidentified Prototypes . | . . . Parts Lost 7 | . 3 4 Power 1 | . . 1 Propulsion 3 | . 2 1 Utility 1 | . . 1 Weapon 2 | . 1 1 Highest Loss Streak 4 | . 3 4 To Critical Strikes . | . . . Average Slot Usage (%) 52 | . 55 49 Engine 11 | . 14 9 Leg 11 | . 22 . Wheel 5 | . 3 7 Processor 4 | . . 9 Protection 2 | . . 5 Energy Gun 5 | . 10 . Ballistic Gun 3 | . . 7 Slashing Weapon 7 | . 4 11 Naked Turns . | . . . Heaviest Build 14 | 7 9 14 Greatest Support 20 | 20 20 10 Greatest Overweight (x) 2 | 1 . 2 Average Overweight (x) . | . . . Largest Inventory Capacity 5 | 5 5 5 Average Capacity 5 | 5 5 5 Most Carried 5 | 4 5 5 Average Carried 3 | 2 3 2 Final Capacity 5 | 5 5 5 Final Carried 4 | 4 4 2 Class Distribution -------------------- 100% | Mutant Dominant Class ---------------- Mutant | -10/Materials Mutant | -9/Materials Resources | -11 -10 -9 ----------- Run | Yrd Mat Mat Matter Collected 251 | 201 . 50 Remotely . | . . . Salvage Created 132 | . 22 110 Parts 11 | . 2 9 Haulers Intercepted . | . . . Recyclers Shooed . | . . . Parts Field Recycled . | . . . Retrieved Matter . | . . . Parts Self-Destructed . | . . . Prevented . | . . . Kills | -11 -10 -9 ------- Run | Yrd Mat Mat Combat Hostiles Destroyed 2 | . . 2 Melee 1 | . . 1 Guns 1 | . . 1 Classes Destroyed 2 | . 1 1 Watcher 1 | . 1 . Sentry 2 | . . 2 Best Kill Streak 1 | . 1 1 Combat Bots Only 1 | . . 1 Max Kills in Single Turn 1 | . 1 1 Gunslinging . | . . . Exploded . | . . . Melee 1 | . . 1 Uniques/NPCs Destroyed . | . . . Combat | -11 -10 -9 -------- Run | Yrd Mat Mat Hostile Shots Fired 130 | . 60 70 Missed 36 | . 21 15 Damage Taken 1255 | . 461 794 Core 497 | . 89 408 Absorbed by Shields . | . . . Regen/Repaired (Parts) 20 | . . 20 Core Remaining (%) 82 | 100 64 . Volleys Fired 29 | . 15 14 Largest 1 | . 1 1 Hottest 50 | . 50 20 Shots Fired 29 | . 15 14 Gun 29 | . 15 14 Cannon . | . . . Launcher . | . . . Special . | . . . Kinetic 14 | . . 14 Thermal 15 | . 15 . Explosive . | . . . Electromagnetic . | . . . Robot Hit Streak 6 | . 2 6 Robot Miss Streak 3 | . 2 3 Penetration Max . | . . . Secondary Targets . | . . . Shots Hit Robots 22 | . 9 13 Core Hits 6 | . 2 4 Critical Kills . | . . . Critical Parts Destroyed . | . . . Critical Strikes 2 | . 2 . Burn 2 | . 2 . Melee Attacks 13 | . 4 9 Impact . | . . . Slashing 13 | . 4 9 Piercing . | . . . Sneak Attacks . | . . . Combat Hostiles . | . . . Follow-up Attacks . | . . . Damage Inflicted 367 | . 164 203 Guns 226 | . 113 113 Cannons . | . . . Explosions . | . . . Melee 141 | . 51 90 Ramming . | . . . Kinetic 113 | . . 113 Thermal 113 | . 113 . Explosive . | . . . Electromagnetic . | . . . Impact . | . . . Slashing 141 | . 51 90 Piercing . | . . . Highest Corruption . | . . . Average Corruption . | . . . Corruption Purged . | . . . Corruption Blocked . | . . . Overload Shots . | . . . Overflow Damage . | . . . Projectiles . | . . . Explosions . | . . . Melee . | . . . Knockbacks . | . . . Impact . | . . . Kinetic . | . . . Secondary . | . . . Self-Inflicted Damage . | . . . Shots . | . . . Rammed . | . . . Targets Rammed . | . . . Kicked . | . . . Crushed . | . . . Highest Temperature 156 | . 156 19 Average Temperature 43 | . 57 3 Received Heat Transfer 552 | . 255 297 Siege Activations . | . . . Robots Corrupted . | . . . Combat Hostiles . | . . . Parts Fried . | . . . Impact Corruptions . | . . . Robots Melted . | . . . Combat Hostiles . | . . . Parts Melted . | . . . Heat Transferred 481 | . 481 . Parts Sabotaged . | . . . Parts Stolen . | . . . Parts Stripped . | . . . Power Chain Reactions . | . . . Alert | -11 -10 -9 ------- Run | Yrd Mat Mat Peak Influence 101 | . 52 101 Initial 9 | . . 9 Average 25 | . 23 37 Maximum Alert Level . | . . . Low Security (%) 100 | 100 100 100 Level 1 . | . . . Level 2 . | . . . Level 3 . | . . . Level 4 . | . . . Level 5 . | . . . High Security . | . . . Max Security . | . . . Squads Dispatched . | . . . Investigation . | . . . Extermination . | . . . Reinforcement . | . . . Assault . | . . . Garrison . | . . . Intercept . | . . . Searches Triggered . | . . . Construction Impeded . | . . . Haulers Reinforced . | . . . Active Scanning Responses . | . . . Cargo Convoy Interrupts . | . . . Stealth | -11 -10 -9 --------- Run | Yrd Mat Mat Distress Signals 1 | . 1 . Communications Jammed . | . . . Distress Signals . | . . . Times Spotted 13 | . 8 5 Peak Tracking Total 6 | . 6 4 Tactical Retreats 1 | . . 1 Traps | -11 -10 -9 ------- Run | Yrd Mat Mat Traps Triggered . | . . . Indirectly . | . . . Trap Hack Attempts . | . . . Triggered . | . . . Disarmed . | . . . Reprogrammed . | . . . Reused . | . . . Traps Extracted . | . . . Installed . | . . . Triggered . | . . . Machines | -11 -10 -9 ---------- Run | Yrd Mat Mat Machines Disabled . | . . . Max in Single Turn . | . . . Machines Repaired . | . . . Machines Dismantled . | . . . Machines Sabotaged . | . . . Overloaded Fab Kills . | . . . Hacking | -11 -10 -9 --------- Run | Yrd Mat Mat Machines Accessed 3 | . 2 1 Terminals 1 | . 1 . Fabricators . | . . . Repair Stations 1 | . . 1 Recycling Units 1 | . 1 . Scanalyzers . | . . . Garrison Access . | . . . Total Hacks 6 | . 2 4 Successful 5 | . 2 3 Failed 1 | . . 1 Catastrophic . | . . . Database Lockouts . | . . . Manual . | . . . Terminals 1 | . 1 . Fabricators . | . . . Repair Stations 4 | . . 4 Recycling Units 1 | . 1 . Scanalyzers . | . . . Garrison Access . | . . . Terminal Hacks 1 | . 1 . Locate Traps 1 | . 1 . Fabricator Hacks . | . . . Repair Station Hacks 3 | . . 3 Scan Component 2 | . . 2 Repair 1 | . . 1 Recycling Unit Hacks 1 | . 1 . Report Inventory 1 | . 1 . Scanalyzer . | . . . Garrison Access Hacks . | . . . Unauthorized Hacks . | . . . Terminals . | . . . Fabricators . | . . . Repair Stations . | . . . Recycling Units . | . . . Scanalyzers . | . . . Garrison Access . | . . . Data Cores Recovered . | . . . Used . | . . . Hacking Detections 2 | . 1 1 Full Trace Events . | . . . Feedback Events . | . . . Feedback Blocked . | . . . Robot Schematics Acquired . | . . . Robots Built . | . . . Authchips . | . . . Time . | . . . Total Robot Build Rating . | . . . Part Schematics Acquired . | . . . Parts Built . | . . . Authchips . | . . . Time . | . . . Total Part Build Rating . | . . . Parts Repaired 1 | . . 1 Time 26 | . . 26 Parts Recycled . | . . . Recycled Matter . | . . . Retrieved Matter . | . . . Retrieved Components . | . . . Parts Scanalyzed . | . . . Part Schematics Acquired . | . . . Parts Damaged . | . . . Bothacking | -11 -10 -9 ------------ Run | Yrd Mat Mat Used RIF Installer . | . . . Robots Hacked . | . . . Non-combat . | . . . Combat . | . . . Robot Hacks Applied . | . . . Relay Couplers Released . | . . . Fabnet Peak Effective % . | . . . Robots Rewired . | . . . Allies Hacked . | . . . Hacks Repelled . | . . . Allies | -11 -10 -9 -------- Run | Yrd Mat Mat Total Allies . | . . . Largest Group . | . . . Highest-Rated Group . | . . . Highest-Rated Ally . | . . . Total Orders . | . . . Ally Attacks . | . . . Total Damage . | . . . Kills . | . . . Allies Corrupted . | . . . Allies Melted . | . . . Intel | -11 -10 -9 ------- Run | Yrd Mat Mat Robot Analysis Total . | . . . Derelict Logs Recovered . | . . . Drone Launches . | . . . Drone Recoveries . | . . . Exploration | -11 -10 -9 ------------- Run | Yrd Mat Mat Turns Passed 443 | 60 201 182 Spaces Moved 293 | 43 143 107 Core 14 | 9 . 5 Treads . | . . . Legs 129 | 34 95 . Wheels 150 | . 48 102 Hover . | . . . Flight . | . . . Fastest Speed 50 | 50 80 50 Average Speed 100 | 110 106 88 Slowest Speed 150 | 120 120 150 Overloaded Moves . | . . . Propulsion Burnouts . | . . . Robots Hopped . | . . . Cave-ins Triggered . | . . . Exploration Rate (%) 18 | 3 37 16 Regions Visited 2 Branch Regions . Pre-discovered Areas . | . . . Known Exits Taken . | . . . Unknown Exits Taken 2 | 1 1 . Scrap Searched . | . . . Spaces Dug . | . . . Terrain Destroyed . | . . . Melee . | . . . Projectile . | . . . AOE . | . . . Terrain Rammed . | . . . Walls Destroyed . | . . . Machines Disabled . | . . . Actions | -11 -10 -9 --------- Run | Yrd Mat Mat Total 386 | 56 168 162 Wait 26 | . . 26 Move 291 | 42 142 107 Hop . | . . . Pick Up 14 | 9 3 2 Fast Attach . | . . . Attach 10 | 4 2 4 Detach . | . . . Swap 1 | . 1 . Drop 2 | 1 1 . Fire 29 | . 15 14 Melee 13 | . 4 9 Ram . | . . . Kick . | . . . Crush . | . . . Escape Stasis . | . . . Rewire . | . . . Trap . | . . . Miscellaneous . | . . . Route ------- -11/Scrapyard -10/Materials (discovered 2 exits: *Mat x2) -9/Materials History --------- Turn | Location | Event 5 | -11/Scrapyard | Discovered new exit (range 16) 61 | -11/Scrapyard | Entered Materials 134 | -10/Materials | Discovered new exit (range 6) 257 | -10/Materials | Discovered new exit (range 7) 262 | -10/Materials | Entered another Materials area 262 | -9/Materials | Evolved 2 slots: Propulsion x2 278 | -9/Materials | Lost 3 parts (2n1w) 295 | -9/Materials | Repaired Wheel 319 | -9/Materials | Build established: Mutant 424 | -9/Materials | Core integrity fell below 50% 435 | -9/Materials | Core integrity fell below 20% 444 | -9/Materials | Destroyed by Y-45 Defender with Heavy Assault Rifle Last Messages --------------- Connecting with Repair Station... >>Scan(Mining Claw) Scanning Mining Claw... Ready to Repair: Mining Claw Rating: 1 Time: 26 Acquired Hrd. Light Armor Plating. K-01 Serf collects debris. Connecting with Terminal... Electrolysis Chamber disabled. Y-45 Defender destroyed. Critical hit (Burn: +37). Hrd. Light Armor Plating destroyed. Wheel destroyed. Assault Rifle destroyed. Ion Engine destroyed. Critical hit (Burn: +37). Y-45 Defender destroyed. Acquired 50 matter. Map ----- +----------------------------------------------------+ | ??????????????????????????????????????????????? | | ??????????????????????????????????????????????? | | ??????????????????????????????????????????????? | | ??????????????????????????????????????????????? | | ??????????????????????????????????????????????? | | ?????????????????????? ?????????????????????? | | ?????????????????????? ?????????????????????? | | ?????????????????????# #????????????????????? | | ?????????????????????# #????????????????????? | | ?????????????????????# #????????????????????? | | ?????????????????????+ /????????????????????? | | ?????????????????????# #????????????????????? | | ?????????????????????# #????????????????????? | | ?????????????????????# #????????????????????? | | ?????????????????????# #????????????????????? | | ?????????????????????# #????????????????????? | | ?????????????????????# #????????????????????? | | ?????????????????????# ##########???????????? | | ?????????????????????# ## #???????????? | | ?????????????????????# ## #???????????? | | ????????????????????## ## """ #???????????? | | ????????????????????# # """ #???????????? | | ????????????????????# =# """ #???????????? | | ????????????????????#!= ! + #???????????? | | ????????????????????#*%[ !# """ #???????????? | | ????????????????????#Y@= # """ #???????????? | | ????????????????????# ##### """ #???????????? | | ????????????????????# #???# #???????????? | | ????????????????????# #???# #???????????? | | ????????????????????# #?###########???????????? | | ????????????????????# #? ???????????????? | | ????????????????????# #??"" ""????????????????? | | ????????????????????# #??"" ""????????????????? | | ????????????????????# #???" "?????????????????? | | ????????????????????# #??? ?????????????????? | | ???????########???### #####+######+##?????????? | | ???????# #???# # ???????? | | ???????# "S #???# + ????????? | | ???????# """ #???# "" """ #?????????? | | ???????# "" #???# "" """ #?????????? | | ???????# #???# """ """ #?????????? | | ???????# #???# #?????????? | | ????#######+####### "T" #?????????? | | ????# """ #?????????? | | ????# #?????????? | | ????# #?????????? | | ????# ###+###############+##### #?????????? | | ????# # #????????? ??? #?????????? | | ????# # """ !#???????# ? #?????????? | | ????# # """ #???????# # #?????????? | +----------------------------------------------------+ Best States ------------- Heat Dissipation 28 Energy Generation 10 Energy Capacity 250 Matter Stores 261 Matter Capacity 300 Sight Range 18 Terrain Scan Density 10 Armor Coverage 150 Evasion (%) 55 Item Schematics ----------------- None Robot Schematics ------------------ None Fabricated ------------ Nothing Alien Tech Used ----------------- None Achievements -------------- None Challenges ------------ None Game ------ Seed ThermoelectricBeamJammer Manual? 0 Play Time 00:09:55 Cumulative 3.7 hours Start 2024.04.02 @ 19:57:40 End 2024.04.02 @ 20:04:48 Sessions 1 Manual Loads 0 Difficulty Rogue Special Mode None Game No. 4 Rogue 3 Adventurer 1 Explorer 0 Win Type - Total 0 Types 0/0/0/0/0/0/0/0/0 Lore% 3 Gallery% 12 Achievement% 9 Wizard Run 0 Options --------- Layout 1 ASCII 0 Keyboard 0 Movement Mouse Keybinds 0 Fullscreen 2 Font 24/Smallcaps Map View 50x35 Zoom Use 0% Tactical HUD 0 Map Filters NONE Filters NONE Steam 1 RUN: 7693df51-9153-466b-8590-2acf08be5582